bitfinex/quotes_ETHUSD_20250810
["timestamp","ask_amount","ask_price","bid_price","bid_amount"]
[1754827226714,0.1192,4181.4,4181.3,0.001]
[1754827226914,6.5237435,4181.4,4181.3,0.001]
[1754827227455,2.5107435,4181.4,4181.3,0.001]
[1754827227646,6.5237435,4181.4,4181.3,0.001]
[1754827227941,4.1322,4181.4,4181.3,0.001]
[1754827228140,6.5237435,4181.4,4181.3,0.001]
[1754827228446,7.46150513,4181.4,4181.3,0.001]
[1754827229267,5.06996163,4181.4,4181.3,0.001]
[1754827229855,7.92400513,4181.4,4181.3,0.001]
[1754827230062,7.92300513,4181.4,4181.3,0.001]
[1754827230436,8.48820513,4181.4,4181.3,0.001]
[1754827230825,7.92300513,4181.4,4181.3,0.001]
[1754827231347,1.05696163,4181.4,4181.3,0.001]
[1754827231530,4.1312,4181.4,4181.3,0.001]
[1754827233131,6.9852435,4181.4,4181.3,0.001]
[1754827233353,7.5504435,4181.4,4181.3,0.001]
[1754827234465,37.5504435,4181.4,4181.3,0.001]
[1754827235228,2.3917723,4181.0,4180.9,0.001]
[1754827235462,0.1192,4181.0,4180.9,0.001]
[1754827235630,4.1302,4181.0,4180.9,0.4686]
[1754827236231,4.1302,4181.0,4180.9,1.1446]
[1754827236834,0.1192,4181.0,4180.9,3.53642951]
[1754827237163,4.1302,4181.0,4180.9,3.53642951]
[1754827237367,0.1192,4181.0,4180.9,3.53642951]
[1754827238536,4.01,4181.4,4181.3,2.39160069]
[1754827238745,3.718175,4182.8,4181.3,2.39160069]
[1754827238746,4.783,4183.1,4181.8,2.39130602]
[1754827238951,2.3909061,4182.6,4181.8,2.39130602]
[1754827239150,0.1192,4181.9,4181.8,2.39131472]
[1754827239369,4.1292,4181.9,4181.8,2.39131472]
[1754827239569,4.1292,4181.9,4181.8,1.1436]
[1754827239951,0.1192,4181.9,4181.8,1.1436]
[1754827240151,0.1192,4181.9,4181.8,3.53491474]
[1754827241278,0.1192,4182.1,4181.9,2.39124416]
[1754827241478,0.1192,4182.1,4181.9,3.06724416]
[1754827241678,0.1192,4182.1,4182.0,0.676]
[1754827241885,0.1192,4182.1,4182.0,1.1436]
[1754827242095,0.1192,4182.1,4181.6,0.4676]
[1754827242296,0.1192,4181.8,4181.4,0.676]
[1754827242518,0.1192,4181.5,4181.2,0.4676]
[1754827242781,0.1192,4181.5,4181.2,1.1436]
[1754827242980,0.1192,4181.5,4180.9,1.1446]
[1754827243373,0.1192,4181.2,4180.9,1.1446]
[1754827243570,0.1192,4181.2,4180.9,3.53642724]
[1754827243794,0.1192,4181.2,4181.0,3.53532955]
[1754827244002,1.27206996,4183.8,4181.1,1.44]
[1754827244149,30.0,4183.7,4183.6,2.39028587]
[1754827244353,0.002,4184.0,4183.9,2.39011448]
[1754827244549,0.002,4184.8,4184.7,2.38965756]
[1754827244807,0.002,4184.8,4184.7,2.53275413]
[1754827245108,0.002,4184.8,4184.7,3.87562535]
[1754827245455,0.002,4184.8,4184.7,3.19962535]
[1754827247896,1e-08,4185.9,4185.7,2.38908665]
[1754827248195,1e-08,4185.9,4185.7,2.73145444]
[1754827248491,1e-08,4185.9,4185.7,3.20275444]
[1754827248691,1e-08,4185.9,4185.7,2.73145444]
[1754827249359,4.007,4185.8,4185.7,0.34236779]
[1754827249695,4.007,4185.8,4185.0,0.1192]
[1754827249696,5.8084,4185.8,4185.0,0.1192]
[1754827249989,3.0,4185.4,4182.9,0.4713]
[1754827250198,3.0,4185.2,4182.9,0.4713]
[1754827250391,1.1322,4185.1,4183.9,2.39007161]
[1754827250591,6.39348626,4185.0,4184.0,2.39004495]
[1754827250790,0.6714,4185.0,4184.1,2.38999651]
[1754827250968,4.004,4184.9,4184.1,2.38999651]
[1754827251370,6.39355197,4184.9,4184.0,2.39005163]
[1754827251565,0.75256901,4184.8,4184.0,2.39005163]
[1754827251765,0.75256901,4184.8,4183.9,2.39011024]
[1754827251996,0.6714,4184.7,4184.0,2.39002877]
[1754827252363,0.6714,4184.7,4183.9,2.39010648]
[1754827252558,4.78575403,4184.6,4183.7,0.4713]
[1754827252764,4.78575403,4184.6,4183.8,2.39017161]
[1754827253468,4.78575403,4184.6,4183.9,2.39009533]
[1754827253791,4.78575403,4184.6,4183.6,2.39026435]
[1754827254018,4.78575403,4184.6,4183.8,2.39016806]
[1754827254198,0.78467911,4184.5,4183.9,2.39010664]
[1754827254597,0.78467911,4184.5,4184.0,2.39004495]
[1754827254805,0.78467911,4184.5,4184.0,2.3900096]
[1754827254993,0.78467911,4184.5,4184.1,2.38994545]
[1754827255199,4.003,4184.4,4183.9,2.3901131]
[1754827255401,4.003,4184.4,4183.8,2.39016811]
[1754827255794,0.6714,4184.5,4183.7,2.39021955]
[1754827256023,4.003,4184.4,4183.7,2.39021955]
[1754827256184,6.39285818,4184.4,4183.5,2.39028662]
[1754827256391,1.37782582,4184.3,4182.9,0.4713]
[1754827256786,1.37782582,4184.3,4183.6,2.39027105]
[1754827256982,0.002,4185.8,4183.8,3.0]
[1754827257219,0.002,4185.8,4185.5,2.38918173]
[1754827257429,0.002,4185.8,4184.0,3.0]
[1754827257430,4.005,4185.8,4185.3,2.38930849]
[1754827257646,4.005,4185.8,4184.0,3.0]
[1754827257647,0.6714,4185.7,4185.4,2.38925543]
[1754827257943,4.005,4185.8,4185.7,2.38908665]
[1754827258305,4.005,4185.8,4185.5,2.38919308]
[1754827258306,4.005,4185.8,4185.5,2.38914925]
[1754827258629,4.005,4185.8,4184.9,0.4713]
[1754827258805,4.005,4185.8,4185.6,2.38911747]
[1754827259233,0.002,4185.8,4185.7,2.38908665]
[1754827259947,0.1212,4185.8,4185.7,2.38908665]
[1754827260302,0.002,4185.8,4185.7,3.33821281]
[1754827260503,0.002,4185.8,4185.7,3.45741281]
[1754827261256,3.64245042,4185.8,4184.9,2.38949611]
[1754827261400,2.51025042,4185.8,4184.9,2.38949611]
[1754827261608,0.1192,4185.0,4184.9,2.38954335]
[1754827261809,0.1192,4185.2,4185.1,2.38942916]
[1754827262023,0.1192,4185.2,4185.1,3.0815642]
[1754827262305,0.1192,4185.2,4185.1,4.33307182]
[1754827262505,0.002,4185.8,4185.7,2.38908665]
[1754827262705,0.002,4185.8,4185.7,2.60992169]
[1754827262906,0.002,4185.8,4185.7,3.08122169]
[1754827263120,0.002,4185.8,4185.7,2.86038665]
[1754827263357,0.002,4185.8,4185.7,3.08119927]
[1754827263657,0.002,4185.8,4185.7,3.40679165]
[1754827263946,1e-08,4185.9,4185.8,2.38902957]
[1754827264109,1e-08,4185.9,4185.8,3.80943248]
[1754827264304,1e-08,4185.9,4185.8,3.78554219]
[1754827267106,0.002,4186.4,4186.3,2.38874423]
[1754827267432,0.002,4186.4,4186.3,7.08731359]
[1754827267631,0.002,4186.4,4186.3,7.20651359]
[1754827267834,0.002,4186.4,4186.3,7.67781359]
[1754827268033,0.002,4186.4,4186.3,3.20651359]
[1754827268231,0.002,4186.4,4186.3,2.72875685]
[1754827268744,0.002,4186.4,4186.3,2.60955685]
[1754827268950,0.002,4186.4,4186.3,0.22119839]
[1754827269445,0.6734,4186.4,4184.8,0.09564]
[1754827269619,0.6734,4186.4,4185.1,0.1192]
[1754827269943,0.1192,4185.7,4185.2,0.49519372]
[1754827270144,0.002,4186.4,4185.4,2.38925789]
[1754827270441,0.1192,4186.3,4186.2,2.38880129]
[1754827270643,0.002,4186.4,4186.2,0.4713]
[1754827270948,0.002,4186.4,4186.3,2.97924423]
[1754827271649,0.002,4186.4,4186.3,2.50794423]
[1754827272026,0.002,4186.4,4186.3,2.97924423]
[1754827272234,0.002,4186.4,4186.3,3.58364423]
[1754827272626,0.002,4186.4,4186.3,7.58264423]
[1754827272833,0.002,4186.4,4186.3,8.00831423]
[1754827274365,0.002,4186.4,4186.3,3.30491423]
[1754827274573,0.002,4186.4,4186.3,9.87724423]
[1754827274723,0.002,4186.4,4186.3,10.58164423]
[1754827274919,0.002,4186.4,4186.3,11.18164423]
[1754827275461,0.002,4186.4,4186.3,11.13164423]
[1754827277244,0.002,4187.2,4187.1,2.38828783]
[1754827277457,0.002,4187.2,4187.1,6.38628783]
[1754827277628,0.002,4187.2,4187.1,2.50748783]
[1754827277834,0.002,4187.2,4187.1,6.50448783]
[1754827278025,0.002,4187.2,4187.1,6.95088783]
[1754827278226,0.002,4187.2,4187.1,7.63968783]
[1754827278473,0.1192,4188.6,4187.2,2.38823079]
[1754827278654,0.1192,4188.9,4187.2,2.83463079]
[1754827278848,0.1192,4188.9,4187.6,2.50720267]
[1754827279031,0.1192,4188.9,4187.6,6.50420267]
[1754827279231,0.1192,4188.9,4187.6,7.63940267]
[1754827279450,0.1192,4188.9,4187.6,8.2514]
[1754827279656,2.85538262,4189.6,4188.8,2.38731461]
[1754827279835,0.6877,4189.4,4188.9,2.38721188]
[1754827280026,1.1562,4189.3,4189.1,2.38709841]
[1754827280237,0.4685,4189.3,4188.8,3.997]
[1754827280570,1.1562,4189.2,4188.8,4.1162]
[1754827280767,0.4685,4189.2,4188.9,2.38724785]
[1754827280971,2.38737555,4188.7,4185.3,1.71409743]
[1754827281272,2.38829022,4187.1,4186.1,0.1192]
[1754827281456,0.1192,4186.6,4186.2,0.22176555]
[1754827281661,0.1192,4186.6,4186.3,0.22176555]
[1754827281662,1.1562,4186.5,4186.3,0.22176555]
[1754827281968,2.50778672,4186.6,4186.4,0.22176555]
[1754827282166,2.97628672,4186.6,4186.5,0.22176555]
[1754827282370,0.5877,4186.6,4185.8,2.50822152]
[1754827282571,0.8069,4187.1,4186.5,0.1192]
[1754827282934,2.38840243,4186.9,4186.5,0.1192]
[1754827283255,0.1192,4187.1,4186.5,0.1192]
[1754827283457,0.1192,4187.1,4186.5,2.50782351]
[1754827283657,0.1192,4187.1,4186.5,0.1192]
[1754827283972,0.1192,4187.1,4186.5,4.1472]
[1754827284344,2.38840589,4186.9,4186.5,0.1192]
[1754827284649,1.1562,4186.8,4186.5,0.1192]
[1754827284865,0.6877,4186.7,4186.5,0.1192]
[1754827285243,0.8069,4187.1,4186.5,0.1192]
[1754827285443,3.19522037,4187.1,4186.5,0.1192]
[1754827286039,2.38838325,4187.0,4186.5,0.1192]
[1754827286235,0.8069,4187.1,4186.5,0.1192]
[1754827286236,3.19518919,4187.1,4186.5,0.1192]
[1754827286465,3.56155811,4187.1,4186.5,0.1192]
[1754827287181,0.1192,4187.1,4186.5,0.1192]
[1754827287348,0.22160304,4187.6,4186.6,0.02388573]
[1754827287549,0.1192,4187.4,4187.0,2.38833991]
[1754827287750,0.1192,4187.4,4187.0,0.4464]
[1754827288163,0.1192,4187.4,4186.8,0.1192]
[1754827288365,0.22160304,4188.1,4186.9,0.92075212]
[1754827288563,0.1192,4188.2,4187.6,2.50715377]
[1754827289076,2.85625777,4188.1,4187.0,2.38833106]
[1754827289380,0.1192,4187.4,4186.9,2.38840192]
[1754827289576,0.6877,4187.3,4186.8,0.1192]
[1754827289879,1.1562,4187.2,4186.7,2.38851601]
[1754827290176,1.2754,4187.1,4186.6,2.50777147]
[1754827290365,0.1192,4187.1,4186.6,2.50777147]
[1754827290678,0.1192,4187.1,4186.2,4.015]
[1754827290679,0.9924,4187.0,4186.2,4.015]
[1754827290844,0.1192,4186.8,4186.5,2.38862456]
[1754827291043,0.1192,4186.8,4186.2,6.52299281]
[1754827291044,0.6877,4186.7,4186.3,2.38870875]
[1754827291242,0.6877,4186.7,4186.4,2.38867721]
[1754827291474,0.6877,4186.7,4186.5,2.38861853]
[1754827291851,0.6877,4186.6,4186.2,2.50797866]
[1754827292190,0.6877,4186.5,4186.4,2.38868717]
[1754827292740,0.1192,4186.8,4186.4,2.38868717]
[1754827292944,0.1192,4186.8,4186.7,2.38851601]
[1754827293390,0.6877,4187.6,4186.9,2.38837483]
[1754827293543,0.6877,4187.6,4186.3,0.4464]
[1754827293544,0.1192,4187.1,4186.5,2.50779958]
[1754827293975,0.1192,4187.1,4186.5,0.1192]
[1754827294177,0.1192,4187.1,4186.6,2.38857306]
[1754827294545,0.1192,4187.1,4186.7,2.38850725]
[1754827294765,0.8069,4187.1,4186.6,2.38856273]
[1754827295280,0.8069,4187.1,4186.7,2.38851565]
[1754827295498,0.1192,4187.1,4186.7,2.38851565]
[1754827295697,0.1192,4187.1,4186.5,0.1192]
[1754827295993,0.1192,4187.1,4186.9,2.38835895]
[1754827296156,0.002,4187.3,4187.1,2.3882854]
[1754827296360,0.002,4187.3,4187.2,2.38823079]
[1754827296559,0.002,4187.3,4187.0,5.3883268]
[1754827296560,0.002,4187.3,4187.0,3.1192]
[1754827296902,0.002,4187.3,4187.2,2.38823079]
[1754827297102,0.002,4187.3,4186.1,0.4464]
[1754827297310,0.1192,4187.2,4186.6,0.1192]
[1754827297466,0.002,4187.3,4187.2,2.38823079]
[1754827297999,0.002,4187.3,4187.2,11.00047309]
[1754827298605,0.002,4188.1,4188.0,2.38777459]
[1754827298946,0.002,4188.1,4188.0,2.50697459]
[1754827299254,0.002,4188.1,4188.0,2.95337459]
[1754827302253,0.002,4188.1,4188.0,2.50697459]
[1754827302559,0.6897,4188.1,4187.6,3.0]
[1754827302755,0.002,4188.1,4188.0,2.38777459]
[1754827304869,0.002,4188.1,4188.0,0.1192]
[1754827305085,0.002,4188.1,4187.7,6.50412178]
[1754827305292,0.002,4188.1,4188.0,2.38777459]
[1754827305480,0.9924,4188.0,4187.7,0.1192]
[1754827305679,0.1192,4187.8,4187.2,0.1192]
[1754827305879,0.6877,4188.0,4187.2,0.1192]
[1754827306069,0.8069,4188.0,4187.2,0.1192]
[1754827306265,0.8069,4188.0,4187.7,2.38790424]
[1754827306517,0.002,4188.1,4187.7,0.1192]
[1754827306659,0.6877,4188.0,4187.6,2.38800267]
[1754827306865,0.8069,4187.9,4187.6,2.38800267]
[1754827307190,0.1192,4187.9,4187.4,2.38811673]
[1754827307387,0.002,4188.1,4187.7,2.38794565]
[1754827307602,0.002,4188.1,4188.0,2.38777459]
[1754827307974,0.002,4188.1,4187.6,0.1192]
[1754827307975,0.002,4188.1,4187.6,2.50718793]
[1754827308487,0.002,4188.1,4187.8,2.38784446]
[1754827308657,0.002,4188.1,4187.9,2.3878205]
[1754827309087,0.002,4188.1,4187.7,2.38789068]
[1754827309289,0.6537,4188.0,4187.6,0.1192]
[1754827309489,0.1192,4187.8,4187.2,4.1152]
[1754827309692,0.1192,4187.8,4187.2,6.50342556]
[1754827309994,0.1192,4187.8,4187.2,6.50341331]
[1754827310501,0.1192,4187.8,4187.5,2.38805447]
[1754827310700,0.1192,4187.8,4187.6,2.3879972]
[1754827312195,0.1192,4187.8,4187.7,2.38794565]
[1754827312412,0.1192,4187.8,4187.6,2.38798638]
[1754827312571,0.1192,4187.8,4187.4,2.38811507]
[1754827313199,0.1192,4187.8,4187.6,2.38796306]
[1754827313815,0.1192,4187.8,4187.5,2.38804589]
[1754827313974,0.1192,4187.8,4187.2,3.996]
[1754827314175,0.1192,4187.8,4187.2,6.38422509]
[1754827314902,0.1192,4187.8,4187.5,2.38801832]
[1754827315102,0.002,4188.1,4187.3,0.4491]
[1754827315413,0.1192,4188.0,4187.8,2.38785453]
[1754827315919,0.002,4188.1,4188.0,2.38777459]
[1754827316285,0.002,4188.1,4187.8,0.4491]
[1754827316612,0.002,4188.1,4188.0,2.38777459]
[1754827317589,0.002,4188.1,4187.6,4.1142]
[1754827317791,0.002,4188.1,4188.0,2.38777459]
[1754827318214,0.002,4188.1,4188.0,3.51347459]
[1754827318425,0.002,4188.1,4188.0,7.42439806]
[1754827318726,0.002,4188.1,4188.0,8.22019806]
[1754827320177,0.002,4188.1,4188.0,11.22019806]
[1754827322101,0.002,4188.1,4188.0,10.09449806]
[1754827322413,0.002,4188.1,4188.0,2.50697459]
[1754827322614,0.002,4188.1,4188.0,3.65655233]
[1754827322816,0.002,4188.1,4188.0,3.63267459]
[1754827323019,0.002,4188.1,4188.0,7.62667459]
[1754827324383,0.002,4188.1,4188.0,10.62667459]
[1754827328819,1e-08,4188.3,4188.2,2.38766057]
[1754827329023,1e-08,4188.3,4188.2,9.37966057]
[1754827329201,1e-08,4188.3,4188.2,10.50536057]
[1754827329829,1e-08,4188.3,4188.2,11.05536057]
[1754827331517,1e-08,4188.3,4188.2,10.49796057]
[1754827332764,1e-08,4188.3,4188.2,9.49886057]
[1754827333949,1e-08,4188.3,4188.2,9.49786057]
[1754827337112,1e-08,4188.3,4188.2,10.62356057]
[1754827337441,1e-08,4188.3,4188.2,9.49786057]
[1754827337837,1e-08,4188.3,4188.2,9.95476057]
[1754827339123,1e-08,4188.3,4188.2,9.49786057]
[1754827340648,1.15340001,4188.3,4188.2,0.1192]
[1754827341059,1.15340001,4188.3,4187.9,2.38783161]
[1754827341341,1.1534,4188.2,4187.9,2.38783161]
[1754827341551,1.1534,4188.1,4187.9,2.38783161]
[1754827341714,1e-08,4188.3,4188.0,2.38777459]
[1754827341914,1e-08,4188.3,4187.8,3.988]
[1754827341915,1e-08,4188.3,4188.1,2.38767264]
[1754827342444,1e-08,4188.3,4188.2,2.38766057]
[1754827342852,0.47000001,4188.3,4187.8,3.988]
[1754827343032,0.47,4188.2,4187.8,2.38787015]
[1754827343231,1.1534,4188.2,4187.7,6.988]
[1754827343541,1.1534,4188.2,4187.8,2.3878805]
[1754827343744,1.1534,4188.1,4187.8,2.3878805]
[1754827343913,1e-08,4188.3,4187.7,3.988]
[1754827343914,1.1534,4188.0,4187.7,3.988]
[1754827344120,0.6834,4187.9,4187.3,0.001]
[1754827344314,1.1534,4187.9,4187.3,0.001]
[1754827344550,0.6834,4187.9,4187.3,0.001]
[1754827344850,3.54130236,4187.8,4187.3,0.001]
[1754827345047,2.38804958,4187.6,4187.3,0.001]
[1754827345248,2.38807891,4187.5,4187.3,0.001]
[1754827345437,2.38811673,4187.4,4187.3,0.001]
[1754827345637,1.1534,4187.4,4187.3,0.001]
[1754827348075,0.6834,4187.4,4187.3,0.001]
[1754827348363,0.47,4187.7,4187.3,0.001]
[1754827348863,0.6834,4188.0,4187.3,2.38916163]
[1754827349070,0.6834,4187.7,4187.3,2.38916163]
[1754827349270,0.6834,4187.7,4187.5,2.38805727]
[1754827349561,0.6834,4187.7,4187.4,2.38810513]
[1754827350442,0.6834,4187.7,4187.3,2.38917343]
[1754827350643,1.1534,4187.6,4187.3,0.001]
[1754827351048,0.25641414,4188.2,4187.3,0.001]
[1754827351049,0.1192,4187.4,4187.3,0.001]
[1754827352947,0.1192,4187.4,4187.3,2.38917376]
[1754827353346,0.1192,4187.4,4187.3,0.001]
[1754827353670,0.1192,4187.4,4187.3,2.84607376]
[1754827353867,0.85991616,4188.3,4187.3,1.63273272]
[1754827353868,1e-08,4188.3,4187.3,1.63273272]
[1754827354171,0.47,4188.2,4187.3,0.001]
[1754827354334,0.6834,4188.1,4187.3,0.001]
[1754827354531,0.6834,4188.1,4188.0,2.38777459]
[1754827354742,1e-08,4188.3,4188.2,2.38766057]
[1754827358169,1e-08,4188.3,4188.2,2.84456057]
[1754827358372,1e-08,4188.3,4188.1,2.38771013]
[1754827358537,1e-08,4188.3,4188.0,3.984]
[1754827358869,0.68340001,4188.3,4188.2,2.38766057]
[1754827359477,0.68340001,4188.3,4188.0,2.38776632]
[1754827359635,1e-08,4188.3,4187.9,2.38778464]
[1754827359838,1.1534,4188.2,4187.5,2.38800297]
[1754827360073,3.54112713,4188.1,4187.4,2.38810208]
[1754827360271,0.6834,4188.0,4187.5,2.38803626]
[1754827360472,0.9866,4187.9,4187.6,2.38800174]
[1754827360691,0.35410126,4188.2,4187.3,3.984]
[1754827360845,0.68340001,4188.3,4187.9,2.38780823]
[1754827361045,0.64060481,4188.3,4187.9,2.38780823]
[1754827361243,0.6834,4188.2,4187.9,2.38780823]
[1754827361544,0.33740481,4188.3,4187.8,2.38787134]
[1754827361750,0.6834,4188.2,4187.9,2.38780383]
[1754827362086,0.6834,4188.1,4187.9,2.38780383]
[1754827362580,0.6834,4188.1,4187.9,2.38780355]
[1754827362743,0.6834,4188.1,4187.5,3.982]
[1754827362744,0.9866,4188.0,4187.5,3.982]
[1754827362948,0.9866,4187.9,4187.5,3.982]
[1754827363278,0.9866,4187.9,4187.7,2.38794565]
[1754827363279,0.6834,4187.8,4187.7,2.38794565]
[1754827363575,0.68340001,4188.3,4187.9,2.38781846]
[1754827363761,1e-08,4188.3,4188.0,2.38775925]
[1754827363961,0.1192,4188.1,4188.0,2.38777459]
[1754827365046,0.1192,4188.1,4188.0,7.3032371]
[1754827365245,1e-08,4188.3,4188.0,7.3032371]
[1754827365246,1e-08,4188.3,4188.2,2.38766057]
[1754827365476,1e-08,4188.3,4188.2,2.41153717]
[1754827365660,1e-08,4188.3,4188.2,6.51973717]
[1754827365860,1e-08,4188.3,4188.2,6.49586057]
[1754827366048,1e-08,4188.3,4188.2,6.89099806]
[1754827368450,1e-08,4188.3,4188.2,10.21869806]
[1754827368778,1e-08,4188.3,4188.2,10.21039806]
[1754827369152,1e-08,4188.3,4188.2,10.83119806]
[1754827369562,1e-08,4188.3,4188.2,10.21039806]
[1754827369946,1e-08,4188.3,4188.2,10.83119806]
[1754827370145,1e-08,4188.3,4188.2,10.21039806]
[1754827370579,1e-08,4188.3,4188.2,5.78279806]
[1754827370885,1e-08,4188.3,4188.2,9.76079806]
[1754827371183,1e-08,4188.3,4188.2,10.20939806]
[1754827371684,1e-08,4188.3,4188.2,9.76079806]
[1754827371881,1e-08,4188.3,4188.2,6.36566057]
[1754827373876,1e-08,4188.3,4188.2,7.55426057]
[1754827375072,1e-08,4188.3,4188.2,6.93346057]
[1754827376392,1e-08,4188.3,4188.2,7.55426057]
[1754827376566,1e-08,4188.3,4188.2,9.93346057]
[1754827376771,1e-08,4188.3,4188.2,11.10426057]
[1754827377763,1e-08,4188.3,4188.2,9.93046057]
[1754827378094,1e-08,4188.3,4188.2,10.55126057]
[1754827378672,1e-08,4188.3,4188.2,9.93046057]
[1754827379095,1e-08,4188.3,4188.2,9.48086057]
[1754827380996,1e-08,4188.3,4188.2,9.92946057]
[1754827383477,1e-08,4188.3,4188.2,10.47946057]
[1754827383681,1e-08,4188.3,4188.2,11.10026057]
[1754827384498,1e-08,4188.3,4188.2,5.50686057]
[1754827384696,1e-08,4188.3,4188.2,9.47886057]
[1754827388696,0.67460001,4188.3,4188.2,9.47886057]
[1754827389194,1e-08,4188.3,4188.2,9.47886057]
[1754827390186,1e-08,4188.3,4188.2,9.92746057]
[1754827394609,1e-08,4188.3,4188.2,9.47886057]
[1754827394795,1e-08,4188.3,4188.2,9.47386057]
[1754827396274,1e-08,4188.3,4188.2,2.50686057]
[1754827396475,1.13680001,4188.3,4188.2,6.47386057]
[1754827397306,0.67460001,4188.3,4188.2,6.47386057]
[1754827397982,1e-08,4188.3,4188.2,6.47386057]
[1754827398707,0.66520001,4188.3,4188.2,6.47386057]
[1754827399424,1.12610001,4188.3,4188.2,3.965]
[1754827399605,1.12610001,4188.3,4188.1,6.35270364]
[1754827399808,1.1261,4188.2,4188.1,6.35270364]
[1754827400008,1.1261,4188.2,4188.1,3.965]
[1754827400473,1.1261,4188.2,4188.1,6.35271758]
[1754827400670,1.1261,4188.2,4188.1,2.38871758]
[1754827400874,1.1261,4188.2,4188.1,0.001]
[1754827401318,1.1261,4188.2,4188.1,2.38871758]
[1754827401501,0.6652,4188.2,4188.1,2.38871758]
[1754827402518,0.6652,4188.2,4188.1,0.001]
[1754827402815,1.1261,4188.2,4188.1,0.001]
[1754827403120,1.48938632,4188.2,4188.1,0.001]
[1754827404192,3.87704689,4188.2,4188.1,0.001]
[1754827409826,3.41614689,4188.2,4188.1,0.001]
[1754827410129,7.83704689,4188.2,4188.1,0.001]
[1754827410528,0.36328632,4188.2,4188.1,0.001]
[1754827410727,4.13943278,4188.3,4188.1,0.001]
[1754827411441,4.80463278,4188.3,4188.1,0.001]
[1754827411675,3.05286057,4188.2,4188.1,0.001]
[1754827411810,3.51376057,4188.2,4188.1,0.001]
[1754827412731,1.1261,4188.2,4188.1,0.001]
[1754827413028,3.05286057,4188.2,4188.1,0.001]
[1754827413235,1.44243377,4188.2,4188.1,0.001]
[1754827413801,0.77723377,4188.2,4188.1,0.001]
[1754827416213,3.83009434,4188.2,4188.1,0.001]
[1754827416411,4.29099434,4188.2,4188.1,0.001]
[1754827416817,1.90333377,4188.2,4188.1,0.001]
[1754827417045,0.77723377,4188.2,4188.1,0.001]
[1754827417447,3.957,4188.2,4188.1,0.001]
[1754827419015,7.47076057,4188.2,4188.1,0.001]
[1754827421543,7.00986057,4188.2,4188.1,0.001]
[1754827422245,7.47076057,4188.2,4188.1,0.001]
[1754827435433,2.38766057,4188.2,4188.1,0.001]
[1754827435638,6.96024724,4188.2,4188.1,0.001]
[1754827435839,7.59774724,4188.2,4188.1,0.001]
[1754827437342,8.03614724,4188.2,4188.1,0.001]
[1754827437738,7.59774724,4188.2,4188.1,0.001]
[1754827438478,8.03614724,4188.2,4188.1,0.001]
[1754827438846,7.59774724,4188.2,4188.1,0.001]
[1754827439860,6.96024724,4188.2,4188.1,0.001]
[1754827440584,7.59774724,4188.2,4188.1,0.001]
[1754827441448,3.01424724,4188.2,4188.1,0.001]
[1754827441710,6.95624724,4188.2,4188.1,0.001]
[1754827442581,0.1192,4188.2,4188.1,0.4367]
[1754827442785,4.0612,4188.2,4188.1,1.0524]
[1754827444051,6.44886057,4188.2,4188.1,0.001]
[1754827444254,30.0,4188.1,4185.9,1.71409743]
[1754827444450,2.93834487,4187.0,4185.8,0.001]
[1754827444682,40.3536469,4187.0,4185.8,0.001]
[1754827444890,5.38840192,4186.9,4186.8,1e-08]
[1754827445189,37.97248341,4186.9,4186.8,1e-08]
[1754827445486,38.52248341,4186.9,4186.8,1e-08]
[1754827445688,2.93863012,4186.5,4186.4,1e-08]
[1754827445862,37.3912798,4186.5,4186.4,1e-08]
[1754827446058,8.6446708,4186.5,4186.4,1e-08]
[1754827446294,9.44683012,4186.5,4186.4,1e-08]
[1754827446495,10.08433012,4186.5,4186.4,1e-08]
[1754827447166,9.44683012,4186.5,4186.4,1e-08]
[1754827447382,10.08433012,4186.5,4186.4,1e-08]
[1754827448097,9.44783012,4186.5,4186.4,0.43570001]
[1754827448295,5.50783012,4186.5,4186.4,0.43570001]
[1754827448460,2.3880379,4187.6,4186.4,0.43570001]
[1754827448664,0.1192,4186.5,4186.4,1.05140001]
[1754827449167,4.778,4188.0,4186.4,3.44008718]
[1754827449168,3.938,4186.6,4186.4,3.44008718]
[1754827449391,3.938,4186.6,4186.4,2.38868718]
[1754827449692,3.938,4186.6,4186.5,1.0514]
[1754827450395,2.38863012,4186.5,4185.8,0.001]
[1754827450712,2.93931498,4185.3,4185.2,1e-08]
[1754827450865,39.87631498,4185.3,4185.2,1e-08]
[1754827451203,40.96751498,4185.3,4185.2,1e-08]
[1754827451382,43.28455566,4185.3,4185.2,1e-08]
[1754827451588,43.28455566,4185.3,4184.0,0.001]
[1754827451589,2.38991948,4184.3,4184.0,0.001]
[1754827451789,2.39000023,4184.1,4184.0,0.001]
[1754827451983,2.50920023,4184.1,4184.0,0.001]
[1754827454182,7.08370023,4184.1,4184.0,0.001]
[1754827454381,8.3655622,4184.1,4184.0,0.001]
[1754827454584,2.39051443,4183.2,4183.1,5.001]
[1754827454804,2.50971443,4183.2,4183.1,5.001]
[1754827455607,3.14721443,4183.2,4183.1,5.001]
[1754827455908,2.50971443,4183.2,4183.1,5.001]
[1754827456206,3.39332902,4183.2,4183.1,5.001]
[1754827456411,3.39332902,4183.2,4182.0,0.4357]
[1754827456412,2.3911432,4182.1,4182.0,0.4357]
[1754827456751,2.3911432,4182.1,4178.4,0.1]
[1754827456752,2.39142942,4181.6,4180.8,0.1192]
[1754827456870,2.39138103,4181.7,4181.4,0.6157]
[1754827457213,0.1192,4181.4,4180.8,0.52472]
[1754827457397,2.51077505,4181.4,4180.8,0.52472]
[1754827457569,2.51077505,4181.4,4180.8,0.1192]
[1754827457570,0.1192,4181.4,4180.8,0.1192]
[1754827457770,2.39122758,4182.0,4180.9,0.4679]
[1754827457771,0.1192,4181.1,4180.9,0.4679]
[1754827457966,0.1192,4181.1,4180.5,0.12]
[1754827458314,0.1192,4181.1,4180.4,0.1]
[1754827458315,0.12,4180.6,4180.4,0.5679]